Department Family,Date Paid,Expense Type,Expense Area,Supplier,Transaction Number,Amount,Vat Inclusive
Crown Prosecution Service ,04/11/2019,General Professional Services,Operations: Digital,PA Consulting Services Limited,10132522,"146,730.00",Y
Crown Prosecution Service ,04/11/2019,General Professional Services,Operations: Digital,PricewaterhouseCoopers,1355243687,"105,824.00",Y
Crown Prosecution Service ,04/11/2019,Crown Court Graduated Fee Scheme,South East Complex Casework Unit,6 Pump Court The Chambers of Mr Stephen Hockman,151728/CE,"31,562.39",Y
Crown Prosecution Service ,04/11/2019,Carbon Reduction Commitment,Estate and FM: Programme,Ministry Of Justice,2318854,"37,661.40",
Crown Prosecution Service ,04/11/2019,Recoverable VAT control,Balance Sheet,Ministry Of Justice,2318874,"13,449.20",Y
Crown Prosecution Service ,04/11/2019,Property management fees,Estate and FM: Programme,Ministry Of Justice,2318874,"67,246.00",
Crown Prosecution Service ,04/11/2019,General Professional Services,Operations: Delivery,NTT Data UK Ltd London,5016466,"31,889.51",Y
Crown Prosecution Service ,04/11/2019,General Professional Services,Operations: Delivery,NTT Data UK Ltd London,5016467,"34,957.54",Y
Crown Prosecution Service ,04/11/2019,General Professional Services,Operations: Delivery,NTT Data UK Ltd London,5016468,"35,573.59",Y
Crown Prosecution Service ,04/11/2019,Apprenticeship Levy payments Permanent,Other Corporate Admin Payments,HM Revenue and Customs,948PB000021422007.,"5,922.48",
Crown Prosecution Service ,04/11/2019,Apprenticeship Levy payments Permanent,Other Corporate Programme Payments,HM Revenue and Customs,948PB000021422007.,"92,785.52",
Crown Prosecution Service ,04/11/2019,Monthly Payroll Settlement,Balance Sheet,HM Revenue and Customs,948PB000021422007.,"6,637,506.07",
Crown Prosecution Service ,04/11/2019,Professional subscriptions and memberships,West Midlands Area Business Centre,Law Society,CRM01398308,"28,634.00",
Crown Prosecution Service ,05/11/2019,Crown Court Graduated Fee Scheme,Thames and Chiltern Complex Casework Unit,Nine Bedford Row (9 Bedford Row),135971jb2,"33,596.58",Y
Crown Prosecution Service ,05/11/2019,Crown Court Graduated Fee Scheme,Thames Chiltern Crown Court Unit,2 Kings Bench Walk London,268111-MJS,"37,337.64",Y
Crown Prosecution Service ,05/11/2019,Recoverable VAT control,Balance Sheet,Cushman & Wakefield Debenham Tie Lung Ltd London,GB3002-CI-19-12762,"9,006.80",Y
Crown Prosecution Service ,05/11/2019,Property management fees,Estate and FM: Programme,Cushman & Wakefield Debenham Tie Lung Ltd London,GB3002-CI-19-12762,"45,034.00",
Crown Prosecution Service ,06/11/2019,Crown Court Very High Cost Cases Full Scheme,Cymru Wales North Crown Court,QEB Hollis Whiteman Chambers,105595/ELA/1,"39,390.00",Y
Crown Prosecution Service ,06/11/2019,Crown Court Very High Cost Cases Full Scheme,Cymru Wales North Crown Court,QEB Hollis Whiteman Chambers,105595/ELA/2,"41,691.00",Y
Crown Prosecution Service ,06/11/2019,Crown Court Graduated Fee Scheme,London South Complex Casework Unit,QEB Hollis Whiteman Chambers,105976/SST/3,"40,138.38",Y
Crown Prosecution Service ,06/11/2019,Crown Court Very High Cost Cases Full Scheme,Cymru Wales North Crown Court,6 Pump Court The Chambers of Mr Stephen Hockman,139273/CMD1,"50,880.00",Y
Crown Prosecution Service ,06/11/2019,Crown Court Graduated Fee Scheme,South West Complex Casework Unit,Albion Chambers,186815 DT Ligament,"33,511.14",Y
Crown Prosecution Service ,06/11/2019,Cleaning,Estate and FM: Programme,Ministry Of Justice,2318494,"100,176.90",
Crown Prosecution Service ,06/11/2019,Recoverable VAT control,Balance Sheet,Ministry Of Justice,2318494,"60,285.31",Y
Crown Prosecution Service ,06/11/2019,Grounds Maintenance,Estate and FM: Programme,Ministry Of Justice,2318494,"6,434.38",
Crown Prosecution Service ,06/11/2019,Cyclical Maintenance,Estate and FM: Programme,Ministry Of Justice,2318494,"62,638.04",
Crown Prosecution Service ,06/11/2019,General Waste Disposal Services,Estate and FM: Programme,Ministry Of Justice,2318494,"21,811.53",
Crown Prosecution Service ,06/11/2019,Cyclical Maintenance,Estate and FM: Administration,Ministry Of Justice,2318494,"3,178.24",
Crown Prosecution Service ,06/11/2019,Facilities management,Estate and FM: Administration,Ministry Of Justice,2318494,"4,742.17",
Crown Prosecution Service ,06/11/2019,Cleaning,Estate and FM: Administration,Ministry Of Justice,2318494,"11,776.36",
Crown Prosecution Service ,06/11/2019,Security,Estate and FM: Programme,Ministry Of Justice,2318494,"33,231.54",
Crown Prosecution Service ,06/11/2019,Grounds Maintenance,Estate and FM: Administration,Ministry Of Justice,2318494,599.86,
Crown Prosecution Service ,06/11/2019,General Waste Disposal Services,Estate and FM: Administration,Ministry Of Justice,2318494,"2,328.78",
Crown Prosecution Service ,06/11/2019,Facilities management,Estate and FM: Programme,Ministry Of Justice,2318494,"87,740.25",
Crown Prosecution Service ,06/11/2019,Security,Estate and FM: Administration,Ministry Of Justice,2318494,"2,712.02",
Crown Prosecution Service ,06/11/2019,Crown Court Graduated Fee Scheme,Thames Chiltern Crown Court Unit,2 Kings Bench Walk London,268111-che1,"26,543.54",Y
Crown Prosecution Service ,07/11/2019,Crown Court Graduated Fee Scheme,South East Crown Court,5 St Andrew's Hill,163887-2/BT,"50,328.77",Y
Crown Prosecution Service ,07/11/2019,Crown Court Graduated Fee Scheme,South East Crown Court,5 St Andrew's Hill,163887-4/CM,"69,844.26",Y
Crown Prosecution Service ,07/11/2019,Miscellaneous receipts suspense,Balance Sheet,Home Office,589303990,"43,460.70",
Crown Prosecution Service ,07/11/2019,UK Hotels,IT Stewardship,Clarity Travel Management,CPSHQ0187,276.00,Y
Crown Prosecution Service ,07/11/2019,UK National rail travel,Data Protection Compliance Unit,Clarity Travel Management,CPSHQ0187,567.30,
Crown Prosecution Service ,07/11/2019,UK Hotels,Departmental Security Unit: Admin,Clarity Travel Management,CPSHQ0187,113.00,Y
Crown Prosecution Service ,07/11/2019,UK Hotels,HR Strategy and Inclusion,Clarity Travel Management,CPSHQ0187,214.00,Y
Crown Prosecution Service ,07/11/2019,UK Hotels,Director of Finance,Clarity Travel Management,CPSHQ0187,3.00,Y
Crown Prosecution Service ,07/11/2019,UK Hotels,Disability Staff Network,Clarity Travel Management,CPSHQ0187,182.00,Y
Crown Prosecution Service ,07/11/2019,UK Hotels,Financial Accounting and Risk,Clarity Travel Management,CPSHQ0187,161.50,Y
Crown Prosecution Service ,07/11/2019,UK National rail travel,Operations: Business Support,Clarity Travel Management,CPSHQ0187,"1,833.25",Y
Crown Prosecution Service ,07/11/2019,UK Hotels,HR Operations,Clarity Travel Management,CPSHQ0187,103.10,Y
Crown Prosecution Service ,07/11/2019,UK Hotels,Service Integration and Operations,Clarity Travel Management,CPSHQ0187,369.75,Y
Crown Prosecution Service ,07/11/2019,UK Hotels,HR Business Management,Clarity Travel Management,CPSHQ0187,3.00,Y
Crown Prosecution Service ,07/11/2019,UK Hotels,Resourcing,Clarity Travel Management,CPSHQ0187,232.00,Y
Crown Prosecution Service ,07/11/2019,UK Hotels,Operations: Delivery,Clarity Travel Management,CPSHQ0187,"1,629.67",Y
Crown Prosecution Service ,07/11/2019,UK National rail travel,Operations: Delivery,Clarity Travel Management,CPSHQ0187,"8,169.70",Y
Crown Prosecution Service ,07/11/2019,UK Hotels,Solutions Development,Clarity Travel Management,CPSHQ0187,48.00,Y
Crown Prosecution Service ,07/11/2019,Overseas Hotels,Private Office,Clarity Travel Management,CPSHQ0187,121.75,Y
Crown Prosecution Service ,07/11/2019,UK Hotels,Strategic Financial Planning,Clarity Travel Management,CPSHQ0187,468.50,Y
Crown Prosecution Service ,07/11/2019,UK Hotels,ERP Project: Admin,Clarity Travel Management,CPSHQ0187,126.00,Y
Crown Prosecution Service ,07/11/2019,UK Hotels,Parliamentary and Public Correspondence Unit,Clarity Travel Management,CPSHQ0187,176.40,Y
Crown Prosecution Service ,07/11/2019,UK Hotels,Operations: Business Support,Clarity Travel Management,CPSHQ0187,73.00,Y
Crown Prosecution Service ,07/11/2019,UK National rail travel,HR Business Management,Clarity Travel Management,CPSHQ0187,"1,019.80",
Crown Prosecution Service ,07/11/2019,UK National rail travel,Solutions Development,Clarity Travel Management,CPSHQ0187,526.30,
Crown Prosecution Service ,07/11/2019,UK National rail travel,DTUS,Clarity Travel Management,CPSHQ0187,506.50,
Crown Prosecution Service ,07/11/2019,UK National rail travel,Operations: Digital,Clarity Travel Management,CPSHQ0187,961.80,
Crown Prosecution Service ,07/11/2019,UK National rail travel,HR Operations,Clarity Travel Management,CPSHQ0187,"1,277.70",
Crown Prosecution Service ,07/11/2019,UK National rail travel,IT Stewardship,Clarity Travel Management,CPSHQ0187,502.50,
Crown Prosecution Service ,07/11/2019,UK National rail travel,Service Transition,Clarity Travel Management,CPSHQ0187,237.60,
Crown Prosecution Service ,07/11/2019,UK National rail travel,Learning and Development General,Clarity Travel Management,CPSHQ0187,"1,368.50",
Crown Prosecution Service ,07/11/2019,UK National rail travel,Service Integration and Operations,Clarity Travel Management,CPSHQ0187,885.40,
Crown Prosecution Service ,07/11/2019,UK National rail travel,HR Strategy and Inclusion,Clarity Travel Management,CPSHQ0187,"1,791.70",
Crown Prosecution Service ,07/11/2019,UK National rail travel,Head of Communication,Clarity Travel Management,CPSHQ0187,59.20,
Crown Prosecution Service ,07/11/2019,UK National rail travel,Resourcing,Clarity Travel Management,CPSHQ0187,"1,452.30",
Crown Prosecution Service ,07/11/2019,UK National rail travel,Strategic Financial Planning,Clarity Travel Management,CPSHQ0187,53.80,
Crown Prosecution Service ,07/11/2019,UK National rail travel,Press Office,Clarity Travel Management,CPSHQ0187,562.45,
Crown Prosecution Service ,07/11/2019,UK National rail travel,Analysis and Delivery,Clarity Travel Management,CPSHQ0187,"1,181.45",
Crown Prosecution Service ,07/11/2019,UK National rail travel,Corporate HR,Clarity Travel Management,CPSHQ0187,"1,772.20",
Crown Prosecution Service ,07/11/2019,UK National rail travel,Operational HR Costs,Clarity Travel Management,CPSHQ0187,"1,319.50",
Crown Prosecution Service ,07/11/2019,UK Air travel,Operations: Delivery,Clarity Travel Management,CPSHQ0187,96.37,
Crown Prosecution Service ,07/11/2019,UK National rail travel,Lesbian Gay Bisexual and Transgender Network,Clarity Travel Management,CPSHQ0187,7.50,
Crown Prosecution Service ,07/11/2019,UK National rail travel,Legal Training,Clarity Travel Management,CPSHQ0187,114.00,
Crown Prosecution Service ,07/11/2019,UK Air travel,Operations: Business Support,Clarity Travel Management,CPSHQ0187,251.09,
Crown Prosecution Service ,07/11/2019,UK National rail travel,Departmental Security Unit: Admin,Clarity Travel Management,CPSHQ0187,545.40,
Crown Prosecution Service ,07/11/2019,UK National rail travel,Private Office,Clarity Travel Management,CPSHQ0187,490.95,
Crown Prosecution Service ,07/11/2019,UK National rail travel,Strategic Advisor Team,Clarity Travel Management,CPSHQ0187,264.50,
Crown Prosecution Service ,07/11/2019,UK National rail travel,DTS Directorate,Clarity Travel Management,CPSHQ0187,345.05,
Crown Prosecution Service ,07/11/2019,UK National rail travel,Information Management Unit,Clarity Travel Management,CPSHQ0187,"1,514.50",
Crown Prosecution Service ,07/11/2019,UK National rail travel,Director of Finance,Clarity Travel Management,CPSHQ0187,361.50,
Crown Prosecution Service ,07/11/2019,UK National rail travel,HR Business Management,Clarity Travel Management,CPSHQ0187,212.10,
Crown Prosecution Service ,07/11/2019,UK National rail travel,ERP Project: Admin,Clarity Travel Management,CPSHQ0187,207.60,
Crown Prosecution Service ,07/11/2019,UK National rail travel,Financial Accounting and Risk,Clarity Travel Management,CPSHQ0187,40.20,
Crown Prosecution Service ,07/11/2019,UK National rail travel,Estates and Commercial,Clarity Travel Management,CPSHQ0187,558.25,
Crown Prosecution Service ,07/11/2019,UK National rail travel,Disability Staff Network,Clarity Travel Management,CPSHQ0187,142.55,
Crown Prosecution Service ,07/11/2019,UK Hotels,Operations: Digital,Clarity Travel Management,CPSHQ0187,295.70,Y
Crown Prosecution Service ,07/11/2019,Crown Court Graduated Fee Scheme,London North Complex Casework Unit,3 Raymond Buildings,WEJ-247202,"33,715.91",Y
Crown Prosecution Service ,08/11/2019,Crown Court Graduated Fee Scheme,London North Complex Casework Unit,QEB Hollis Whiteman Chambers,105719/KB,"26,004.43",Y
Crown Prosecution Service ,08/11/2019,Crown Court Graduated Fee Scheme,London North Complex Casework Unit,QEB Hollis Whiteman Chambers,105719/PE,"43,693.84",Y
Crown Prosecution Service ,08/11/2019,Crown Court Graduated Fee Scheme,London North Complex Casework Unit,QEB Hollis Whiteman Chambers,106355/JE,"30,474.97",Y
Crown Prosecution Service ,08/11/2019,IT services,PSN Services Contract,CenturyLink,86070052/978490,"207,211.18",Y
Crown Prosecution Service ,08/11/2019,Crown Court Graduated Fee Scheme,West Midlands Crown Court Unit,6 Kings Bench Walk- Chambers of D Fisher & D Perry,97633 TASLEEM CUR,"51,774.40",Y
Crown Prosecution Service ,08/11/2019,Property management fees,Estate and FM: Programme,Cushman & Wakefield Debenham Tie Lung Ltd London,CPS489,"5,698.31",Y
Crown Prosecution Service ,08/11/2019,Landlord service charge,Estate and FM: Programme,Cushman & Wakefield Debenham Tie Lung Ltd London,CPS489,"77,626.47",Y
Crown Prosecution Service ,08/11/2019,Landlord service charge,Estate and FM: Administration,Cushman & Wakefield Debenham Tie Lung Ltd London,CPS489,"1,217.64",Y
Crown Prosecution Service ,08/11/2019,Landlord service charge,Estate and FM: Programme,Cushman & Wakefield Debenham Tie Lung Ltd London,CPS489,"9,343.66",
Crown Prosecution Service ,08/11/2019,Operating lease rentals Property,Estate and FM: Programme,Cushman & Wakefield Debenham Tie Lung Ltd London,CPS489,"63,669.93",
Crown Prosecution Service ,08/11/2019,National non domestic rates,Estate and FM: Programme,Cushman & Wakefield Debenham Tie Lung Ltd London,CPS489,"51,602.08",
Crown Prosecution Service ,08/11/2019,Landlord service charge,Estate and FM: Programme,Cushman & Wakefield Debenham Tie Lung Ltd London,CPS489,"20,074.18",
Crown Prosecution Service ,08/11/2019,Professional subscriptions and memberships,London North Management Team,Law Society,CRM01403895,"45,870.00",
Crown Prosecution Service ,08/11/2019,Professional subscriptions and memberships,London South Management Team,Law Society,CRM01407148,"43,416.00",
Crown Prosecution Service ,11/11/2019,Crown Court Graduated Fee Scheme,South East Complex Casework Unit,6 Pump Court The Chambers of Mr Stephen Hockman,151823/ST6,"38,602.56",Y
Crown Prosecution Service ,11/11/2019,Crown Court Very High Cost Cases Full Scheme,SFD London,Furnival Chambers,157480 NISM MeekerF7,"27,817.50",Y
Crown Prosecution Service ,11/11/2019,Crown Court Very High Cost Cases Full Scheme,SFD London,5 St Andrew's Hill,163315-1/DC Stage 4,"34,116.00",Y
Crown Prosecution Service ,11/11/2019,Crown Court Graduated Fee Scheme,West Midlands Crown Court Unit,No 5 Fountain Court Chambers,748466/TIM/CHOUD/2,"25,539.91",Y
Crown Prosecution Service ,11/11/2019,IT services,PSN Connectivity Contract,CenturyLink,85133862/976364,"185,278.45",Y
Crown Prosecution Service ,11/11/2019,Recoverable VAT control,Balance Sheet,CenturyLink,86070054/978501,"30,088.81",Y
Crown Prosecution Service ,11/11/2019,IT services,PSN Connectivity Contract,CenturyLink,86070054/978501,"150,444.07",
Crown Prosecution Service ,11/11/2019,Recoverable VAT control,Balance Sheet,CGI IT UK Ltd,GB014027710,"56,420.71",Y
Crown Prosecution Service ,11/11/2019,IT services,ICT Exit and Transition Programme,CGI IT UK Ltd,GB014027710,"282,103.56",
Crown Prosecution Service ,11/11/2019,IT services,ICT Exit and Transition Programme,CGI IT UK Ltd,GB014027847,"330,098.91",
Crown Prosecution Service ,11/11/2019,Recoverable VAT control,Balance Sheet,CGI IT UK Ltd,GB014027847,"66,019.78",Y
Crown Prosecution Service ,12/11/2019,Crown Court Graduated Fee Scheme,London South Complex Casework Unit,23 Essex Street Chambers,172648-CA-TRIAL,"37,958.46",Y
Crown Prosecution Service ,12/11/2019,Crown Court Graduated Fee Scheme,London South Complex Casework Unit,23 Essex Street Chambers,172648-PD-,"27,999.85",Y
Crown Prosecution Service ,12/11/2019,New Works: non capital,Estate and FM: Programme,Ministry Of Justice,2318495,"144,286.47",Y
Crown Prosecution Service ,12/11/2019,Reactive Maintenance,Estate and FM: Programme,Ministry Of Justice,2318495,"46,935.34",
Crown Prosecution Service ,12/11/2019,Reactive Maintenance,Estate and FM: Administration,Ministry Of Justice,2318495,373.83,
Crown Prosecution Service ,12/11/2019,Recoverable VAT control,Balance Sheet,Ministry Of Justice,2318495,"9,461.83",Y
Crown Prosecution Service ,14/11/2019,Crown Court Graduated Fee Scheme,London South Complex Casework Unit,5 St Andrew's Hill,166055-1/KD,"43,703.82",Y
Crown Prosecution Service ,14/11/2019,Recoverable VAT control,Balance Sheet,KPMG LLP London,5501950757,"4,664.40",Y
Crown Prosecution Service ,14/11/2019,External Training,Operational HR Costs,KPMG LLP London,5501950757,"23,322.00",
Crown Prosecution Service ,14/11/2019,IT services,Estate and FM: Programme,CenturyLink,86062912/979870,"12,021.35",Y
Crown Prosecution Service ,14/11/2019,IT services,ICT Exit and Transition Programme,CenturyLink,86062912/979870,871.20,Y
Crown Prosecution Service ,14/11/2019,IT services,Analysis and Delivery: non CMS,CenturyLink,86062912/979870,"21,888.94",Y
Crown Prosecution Service ,14/11/2019,Dilapidations Provision transferred to accruals,Balance Sheet,Cripps LLP Tunbridge Wells,CR50073.000821 12.11.19,"41,130.95",
Crown Prosecution Service ,15/11/2019,Crown Court Graduated Fee Scheme,Northumbria Crown Court Unit,Trinity Chambers,4306,"26,464.94",Y
Crown Prosecution Service ,15/11/2019,Crown Court Very High Cost Cases Full Scheme,Thames and Chiltern Complex Casework Unit,6 Pump Court The Chambers of Mr Stephen Hockman,152886/MD2,"26,214.30",Y
Crown Prosecution Service ,15/11/2019,Crown Court Graduated Fee Scheme,Wessex Complex Casework Unit,3PB (3 Paper Buildings),348031RO,"41,652.90",Y
Crown Prosecution Service ,18/11/2019,Crown Court Graduated Fee Scheme,Thames and Chiltern Complex Casework Unit,23 Essex Street Chambers,NR 173095,"38,692.51",Y
Crown Prosecution Service ,19/11/2019,IT Professional Services Design & Development Hardware & Software: Non Capital Purchases,Solution Management,ICS.AI Ltd Basingstoke,39,"36,000.00",Y
Crown Prosecution Service ,19/11/2019,Crown Court Graduated Fee Scheme,London North RASSO,Nine Bedford Row (9 Bedford Row),137582mha,"29,153.66",Y
Crown Prosecution Service ,19/11/2019,Crown Court Graduated Fee Scheme,South East Complex Casework Unit,6 Kings Bench Walk- Chambers of D Fisher & D Perry,97541 LACOMBA1 AMG,"36,051.59",Y
Crown Prosecution Service ,19/11/2019,Crown Court Graduated Fee Scheme,London South Crown Court Unit,6 Kings Bench Walk- Chambers of D Fisher & D Perry,98153 ASIRI SW,"33,789.85",Y
Crown Prosecution Service ,20/11/2019,IT services,End User Computing Contract,WIPRO Holdings London,83006280,"108,713.50",
Crown Prosecution Service ,20/11/2019,Recoverable VAT control,Balance Sheet,WIPRO Holdings London,83006280,"21,742.70",Y
Crown Prosecution Service ,20/11/2019,Legal Consultancy Advice,ICT Exit and Transition Programme,Brownejacobson Nottingham,IN-000031504,"104,788.97",Y
Crown Prosecution Service ,20/11/2019,Crown Court Graduated Fee Scheme,London North RASSO,Lamb Chambers,NES 216970,"45,951.24",Y
Crown Prosecution Service ,21/11/2019,Crown Court Graduated Fee Scheme,London North Complex Casework Unit,QEB Hollis Whiteman Chambers,105912/CA,"83,757.64",Y
Crown Prosecution Service ,21/11/2019,Crown Court Graduated Fee Scheme,London North Complex Casework Unit,Furnival Chambers,159251 JDS PetroSOAK,"40,968.25",Y
Crown Prosecution Service ,21/11/2019,Crown Court Graduated Fee Scheme,East Midlands Crown Court Section,Bank House Chambers,176628 klg 9,"27,538.94",Y
Crown Prosecution Service ,21/11/2019,Crown Court Graduated Fee Scheme,East Midlands Crown Court Section,36 Bedford Row,192942-DH-Trial,"59,896.00",Y
Crown Prosecution Service ,21/11/2019,Crown Court Graduated Fee Scheme,East Midlands Crown Court Section,36 Bedford Row,192942-JJH-Trial,"29,726.35",Y
Crown Prosecution Service ,21/11/2019,Electricity,Wessex Area Business Centre,Ministry Of Justice,2318496,"5,651.13",
Crown Prosecution Service ,21/11/2019,Gas,North East Area Business Centre,Ministry Of Justice,2318496,"2,257.83",
Crown Prosecution Service ,21/11/2019,Electricity,South East Area Business Centre,Ministry Of Justice,2318496,"6,953.46",
Crown Prosecution Service ,21/11/2019,Electricity,Yorkshire and Humberside Area Business Centre,Ministry Of Justice,2318496,"25,181.42",
Crown Prosecution Service ,21/11/2019,Electricity,South West Area Business Centre,Ministry Of Justice,2318496,"1,132.52",
Crown Prosecution Service ,21/11/2019,Gas,Thames and Chiltern Area Business Centre,Ministry Of Justice,2318496,915.11,
Crown Prosecution Service ,21/11/2019,Electricity,East of England Area Business Centre,Ministry Of Justice,2318496,"9,647.78",
Crown Prosecution Service ,21/11/2019,Electricity,North West Magistrates Court Hub,Ministry Of Justice,2318496,"10,725.64",
Crown Prosecution Service ,21/11/2019,Water & Sewerage,Estate and FM: Programme,Ministry Of Justice,2318496,"14,871.96",
Crown Prosecution Service ,21/11/2019,Electricity,North East Area Business Centre,Ministry Of Justice,2318496,"14,223.26",
Crown Prosecution Service ,21/11/2019,Gas,East Midlands Area Business Centre,Ministry Of Justice,2318496,"1,431.48",
Crown Prosecution Service ,21/11/2019,Electricity,Cymru Wales North Magistrates Court,Ministry Of Justice,2318496,"2,053.15",
Crown Prosecution Service ,21/11/2019,Electricity,Thames and Chiltern Area Business Centre,Ministry Of Justice,2318496,"3,317.22",
Crown Prosecution Service ,21/11/2019,Water & Sewerage,Estate and FM: Administration,Ministry Of Justice,2318496,558.60,
Crown Prosecution Service ,21/11/2019,Electricity,East Midlands Area Business Centre,Ministry Of Justice,2318496,"7,615.15",
Crown Prosecution Service ,21/11/2019,Electricity,West Midlands Area Business Centre,Ministry Of Justice,2318496,"10,824.83",
Crown Prosecution Service ,21/11/2019,Gas,Estate and FM: Administration,Ministry Of Justice,2318496,439.66,
Crown Prosecution Service ,21/11/2019,Gas,Yorkshire and Humberside Area Business Centre,Ministry Of Justice,2318496,"2,049.15",
Crown Prosecution Service ,21/11/2019,Gas,South East Area Business Centre,Ministry Of Justice,2318496,875.53,
Crown Prosecution Service ,21/11/2019,Electricity,Estate and FM: Administration,Ministry Of Justice,2318496,"2,842.30",
Crown Prosecution Service ,21/11/2019,Crown Court Graduated Fee Scheme,Cymru Wales RASSO unit,30 Park Place Chambers,616732-2/CR,"25,139.94",Y
Crown Prosecution Service ,21/11/2019,Crown Court Graduated Fee Scheme,Thames and Chiltern RASSO Unit,Church Court Chambers,66262BAQC,"52,961.04",Y
Crown Prosecution Service ,21/11/2019,UK National rail travel,Service Transition,Clarity Travel Management,CPSHQ0188,655.70,
Crown Prosecution Service ,21/11/2019,UK National rail travel,Service Integration and Operations,Clarity Travel Management,CPSHQ0188,396.30,
Crown Prosecution Service ,21/11/2019,UK National rail travel,HR Operations,Clarity Travel Management,CPSHQ0188,508.95,
Crown Prosecution Service ,21/11/2019,UK National rail travel,Finance Operations,Clarity Travel Management,CPSHQ0188,472.90,
Crown Prosecution Service ,21/11/2019,UK National rail travel,IT Stewardship,Clarity Travel Management,CPSHQ0188,994.90,
Crown Prosecution Service ,21/11/2019,UK National rail travel,Press Office,Clarity Travel Management,CPSHQ0188,375.10,
Crown Prosecution Service ,21/11/2019,UK National rail travel,Strategic Financial Planning,Clarity Travel Management,CPSHQ0188,389.50,
Crown Prosecution Service ,21/11/2019,UK Hotels,Operations: Delivery,Clarity Travel Management,CPSHQ0188,"6,508.10",Y
Crown Prosecution Service ,21/11/2019,UK Hotels,Director of Finance,Clarity Travel Management,CPSHQ0188,132.40,Y
Crown Prosecution Service ,21/11/2019,UK Hotels,Strategic Financial Planning,Clarity Travel Management,CPSHQ0188,320.00,Y
Crown Prosecution Service ,21/11/2019,UK Hotels,Learning and Development General,Clarity Travel Management,CPSHQ0188,281.00,Y
Crown Prosecution Service ,21/11/2019,Overseas Hotels,Leadership and Management Development,Clarity Travel Management,CPSHQ0188,95.88,Y
Crown Prosecution Service ,21/11/2019,UK Hotels,HR Strategy and Inclusion,Clarity Travel Management,CPSHQ0188,47.76,Y
Crown Prosecution Service ,21/11/2019,UK Hotels,Service Integration and Operations,Clarity Travel Management,CPSHQ0188,3.00,Y
Crown Prosecution Service ,21/11/2019,UK Hotels,Resourcing,Clarity Travel Management,CPSHQ0188,"2,186.73",Y
Crown Prosecution Service ,21/11/2019,UK Hotels,HR Business Management,Clarity Travel Management,CPSHQ0188,254.60,Y
Crown Prosecution Service ,21/11/2019,UK Hotels,IT Stewardship,Clarity Travel Management,CPSHQ0188,863.05,Y
Crown Prosecution Service ,21/11/2019,UK Hotels,ERP Project: Admin,Clarity Travel Management,CPSHQ0188,542.00,Y
Crown Prosecution Service ,21/11/2019,UK Hotels,Estates and Commercial,Clarity Travel Management,CPSHQ0188,261.18,Y
Crown Prosecution Service ,21/11/2019,UK Hotels,Analysis and Delivery,Clarity Travel Management,CPSHQ0188,"1,003.25",Y
Crown Prosecution Service ,21/11/2019,UK Hotels,Press Office,Clarity Travel Management,CPSHQ0188,76.00,Y
Crown Prosecution Service ,21/11/2019,UK Hotels,Solutions Development,Clarity Travel Management,CPSHQ0188,335.48,Y
Crown Prosecution Service ,21/11/2019,UK Hotels,Operations: Digital,Clarity Travel Management,CPSHQ0188,"1,005.80",Y
Crown Prosecution Service ,21/11/2019,UK National rail travel,Estates and Commercial,Clarity Travel Management,CPSHQ0188,"1,796.15",
Crown Prosecution Service ,21/11/2019,UK National rail travel,HR Business Management,Clarity Travel Management,CPSHQ0188,794.70,
Crown Prosecution Service ,21/11/2019,Overseas Air travel,Private Office,Clarity Travel Management,CPSHQ0188,"5,553.54",
Crown Prosecution Service ,21/11/2019,UK National rail travel,Financial Accounting and Risk,Clarity Travel Management,CPSHQ0188,"1,678.50",
Crown Prosecution Service ,21/11/2019,UK National rail travel,Departmental Security Unit: Admin,Clarity Travel Management,CPSHQ0188,"1,550.35",
Crown Prosecution Service ,21/11/2019,UK National rail travel,Leadership and Management Development,Clarity Travel Management,CPSHQ0188,121.10,
Crown Prosecution Service ,21/11/2019,UK National rail travel,Private Office,Clarity Travel Management,CPSHQ0188,293.90,
Crown Prosecution Service ,21/11/2019,UK National rail travel,Information Management Unit,Clarity Travel Management,CPSHQ0188,951.10,
Crown Prosecution Service ,21/11/2019,UK National rail travel,Analysis and Delivery,Clarity Travel Management,CPSHQ0188,723.90,
Crown Prosecution Service ,21/11/2019,UK National rail travel,Resourcing,Clarity Travel Management,CPSHQ0188,"1,797.25",
Crown Prosecution Service ,21/11/2019,UK National rail travel,Corporate HR,Clarity Travel Management,CPSHQ0188,540.90,
Crown Prosecution Service ,21/11/2019,UK National rail travel,Director of Finance,Clarity Travel Management,CPSHQ0188,509.50,
Crown Prosecution Service ,21/11/2019,UK National rail travel,Strategic Financial Planning,Clarity Travel Management,CPSHQ0188,281.50,
Crown Prosecution Service ,21/11/2019,UK National rail travel,Operations: Delivery,Clarity Travel Management,CPSHQ0188,"10,009.55",
Crown Prosecution Service ,21/11/2019,UK National rail travel,Operational HR Costs,Clarity Travel Management,CPSHQ0188,326.10,
Crown Prosecution Service ,21/11/2019,UK National rail travel,Solutions Development,Clarity Travel Management,CPSHQ0188,513.70,
Crown Prosecution Service ,21/11/2019,UK National rail travel,ERP Project: Admin,Clarity Travel Management,CPSHQ0188,331.00,
Crown Prosecution Service ,21/11/2019,UK National rail travel,HR Strategy and Inclusion,Clarity Travel Management,CPSHQ0188,380.45,
Crown Prosecution Service ,21/11/2019,UK National rail travel,Operations: Business Support,Clarity Travel Management,CPSHQ0188,688.20,
Crown Prosecution Service ,21/11/2019,UK National rail travel,Permanent Transfer Costs,Clarity Travel Management,CPSHQ0188,561.00,
Crown Prosecution Service ,21/11/2019,UK National rail travel,Operations: Digital,Clarity Travel Management,CPSHQ0188,554.50,
Crown Prosecution Service ,21/11/2019,UK National rail travel,Disability Staff Network,Clarity Travel Management,CPSHQ0188,181.60,
Crown Prosecution Service ,21/11/2019,UK National rail travel,Data Protection Compliance Unit,Clarity Travel Management,CPSHQ0188,202.80,
Crown Prosecution Service ,21/11/2019,UK National rail travel,Learning and Development General,Clarity Travel Management,CPSHQ0188,574.50,
Crown Prosecution Service ,21/11/2019,UK National rail travel,DTUS,Clarity Travel Management,CPSHQ0188,130.00,
Crown Prosecution Service ,21/11/2019,Professional subscriptions and memberships,Yorkshire and Humberside Area Business Centre,Law Society,CRM01401817,"25,787.00",
Crown Prosecution Service ,22/11/2019,UK National rail travel,Legal Trainee Salaries,Clarity Travel Management,CPSHQ0189,80.90,
Crown Prosecution Service ,22/11/2019,UK National rail travel,HR Business Management,Clarity Travel Management,CPSHQ0189,109.15,
Crown Prosecution Service ,22/11/2019,UK Hotels,Strategic Financial Planning,Clarity Travel Management,CPSHQ0189,161.50,Y
Crown Prosecution Service ,22/11/2019,UK Hotels,Learning and Development General,Clarity Travel Management,CPSHQ0189,781.63,Y
Crown Prosecution Service ,22/11/2019,UK Hotels,HR Operations,Clarity Travel Management,CPSHQ0189,78.00,Y
Crown Prosecution Service ,22/11/2019,UK Hotels,HR Business Management,Clarity Travel Management,CPSHQ0189,112.00,Y
Crown Prosecution Service ,22/11/2019,UK Hotels,Analysis and Delivery,Clarity Travel Management,CPSHQ0189,342.50,Y
Crown Prosecution Service ,22/11/2019,UK Hotels,Operations: Delivery,Clarity Travel Management,CPSHQ0189,"6,658.36",Y
Crown Prosecution Service ,22/11/2019,UK Hotels,HR Business Management,Clarity Travel Management,CPSHQ0189,63.00,Y
Crown Prosecution Service ,22/11/2019,UK Hotels,Information Management Unit,Clarity Travel Management,CPSHQ0189,379.00,Y
Crown Prosecution Service ,22/11/2019,UK Hotels,IT Stewardship,Clarity Travel Management,CPSHQ0189,868.79,Y
Crown Prosecution Service ,22/11/2019,UK Hotels,HR Strategy and Inclusion,Clarity Travel Management,CPSHQ0189,446.74,Y
Crown Prosecution Service ,22/11/2019,UK Hotels,Estates and Commercial,Clarity Travel Management,CPSHQ0189,"1,371.16",Y
Crown Prosecution Service ,22/11/2019,UK Hotels,Operations: Business Support,Clarity Travel Management,CPSHQ0189,795.65,Y
Crown Prosecution Service ,22/11/2019,UK Hotels,Resourcing,Clarity Travel Management,CPSHQ0189,"3,616.40",Y
Crown Prosecution Service ,22/11/2019,UK Hotels,Operations: Digital,Clarity Travel Management,CPSHQ0189,"1,750.30",Y
Crown Prosecution Service ,22/11/2019,Overseas Hotels,Leadership and Management Development,Clarity Travel Management,CPSHQ0189,79.80,Y
Crown Prosecution Service ,22/11/2019,UK Hotels,Service Transition,Clarity Travel Management,CPSHQ0189,151.00,Y
Crown Prosecution Service ,22/11/2019,UK Hotels,Departmental Security Unit: Admin,Clarity Travel Management,CPSHQ0189,950.86,Y
Crown Prosecution Service ,22/11/2019,UK Hotels,Corporate HR,Clarity Travel Management,CPSHQ0189,98.00,Y
Crown Prosecution Service ,22/11/2019,UK Hotels,HR Strategy and Inclusion,Clarity Travel Management,CPSHQ0189,98.01,Y
Crown Prosecution Service ,22/11/2019,Overseas Hotels,Operations: Delivery,Clarity Travel Management,CPSHQ0189,182.40,Y
Crown Prosecution Service ,22/11/2019,UK Hotels,Data Protection Compliance Unit,Clarity Travel Management,CPSHQ0189,106.00,Y
Crown Prosecution Service ,22/11/2019,UK Hotels,Solutions Development,Clarity Travel Management,CPSHQ0189,"1,772.87",Y
Crown Prosecution Service ,22/11/2019,UK Hotels,ERP Project: Admin,Clarity Travel Management,CPSHQ0189,496.12,Y
Crown Prosecution Service ,22/11/2019,UK Hotels,Press Office,Clarity Travel Management,CPSHQ0189,667.00,Y
Crown Prosecution Service ,22/11/2019,UK National rail travel,Service Transition,Clarity Travel Management,CPSHQ0189,303.00,
Crown Prosecution Service ,22/11/2019,UK National rail travel,DTS Directorate,Clarity Travel Management,CPSHQ0189,220.70,
Crown Prosecution Service ,22/11/2019,UK National rail travel,Operations: Digital,Clarity Travel Management,CPSHQ0189,228.00,
Crown Prosecution Service ,22/11/2019,UK National rail travel,Analysis and Delivery,Clarity Travel Management,CPSHQ0189,"2,930.85",
Crown Prosecution Service ,22/11/2019,UK National rail travel,HR Operations,Clarity Travel Management,CPSHQ0189,"1,095.35",
Crown Prosecution Service ,22/11/2019,UK National rail travel,Operational HR Costs,Clarity Travel Management,CPSHQ0189,750.50,
Crown Prosecution Service ,22/11/2019,UK National rail travel,Learning and Development General,Clarity Travel Management,CPSHQ0189,892.30,
Crown Prosecution Service ,22/11/2019,UK National rail travel,Operations: Delivery,Clarity Travel Management,CPSHQ0189,"9,224.50",
Crown Prosecution Service ,22/11/2019,UK National rail travel,Private Office,Clarity Travel Management,CPSHQ0189,183.40,
Crown Prosecution Service ,22/11/2019,UK National rail travel,Estates and Commercial,Clarity Travel Management,CPSHQ0189,"1,698.30",
Crown Prosecution Service ,22/11/2019,UK National rail travel,Financial Accounting and Risk,Clarity Travel Management,CPSHQ0189,39.50,
Crown Prosecution Service ,22/11/2019,UK National rail travel,Operations: Business Support,Clarity Travel Management,CPSHQ0189,"3,696.80",
Crown Prosecution Service ,22/11/2019,UK National rail travel,Operations: Digital,Clarity Travel Management,CPSHQ0189,"1,590.60",
Crown Prosecution Service ,22/11/2019,UK National rail travel,Resourcing,Clarity Travel Management,CPSHQ0189,"1,295.90",
Crown Prosecution Service ,22/11/2019,UK National rail travel,Finance Operations,Clarity Travel Management,CPSHQ0189,525.20,
Crown Prosecution Service ,22/11/2019,UK National rail travel,DTUS,Clarity Travel Management,CPSHQ0189,192.50,
Crown Prosecution Service ,22/11/2019,UK National rail travel,ERP Project: Admin,Clarity Travel Management,CPSHQ0189,208.00,
Crown Prosecution Service ,22/11/2019,UK National rail travel,Disability Staff Network,Clarity Travel Management,CPSHQ0189,75.95,
Crown Prosecution Service ,22/11/2019,UK National rail travel,Departmental Security Unit: Admin,Clarity Travel Management,CPSHQ0189,"3,098.40",
Crown Prosecution Service ,22/11/2019,UK National rail travel,Corporate HR,Clarity Travel Management,CPSHQ0189,"1,666.00",
Crown Prosecution Service ,22/11/2019,UK National rail travel,Permanent Transfer Costs,Clarity Travel Management,CPSHQ0189,"1,046.70",
Crown Prosecution Service ,22/11/2019,UK National rail travel,Head of Communication,Clarity Travel Management,CPSHQ0189,37.20,
Crown Prosecution Service ,22/11/2019,UK National rail travel,Information Management Unit,Clarity Travel Management,CPSHQ0189,312.70,
Crown Prosecution Service ,22/11/2019,UK National rail travel,Solutions Development,Clarity Travel Management,CPSHQ0189,"1,013.90",
Crown Prosecution Service ,22/11/2019,UK National rail travel,IT Stewardship,Clarity Travel Management,CPSHQ0189,837.70,
Crown Prosecution Service ,22/11/2019,UK National rail travel,Data Protection Compliance Unit,Clarity Travel Management,CPSHQ0189,242.00,
Crown Prosecution Service ,22/11/2019,UK National rail travel,HR Business Management,Clarity Travel Management,CPSHQ0189,865.15,
Crown Prosecution Service ,22/11/2019,UK National rail travel,Parliamentary and Public Correspondence Unit,Clarity Travel Management,CPSHQ0189,84.00,
Crown Prosecution Service ,22/11/2019,UK National rail travel,Service Integration and Operations,Clarity Travel Management,CPSHQ0189,188.50,
Crown Prosecution Service ,22/11/2019,UK National rail travel,Press Office,Clarity Travel Management,CPSHQ0189,386.00,
Crown Prosecution Service ,22/11/2019,UK National rail travel,Strategic Advisor Team,Clarity Travel Management,CPSHQ0189,140.90,
Crown Prosecution Service ,22/11/2019,UK National rail travel,HR Strategy and Inclusion,Clarity Travel Management,CPSHQ0189,804.30,
Crown Prosecution Service ,22/11/2019,UK National rail travel,Corporate Communication,Clarity Travel Management,CPSHQ0189,97.65,
Crown Prosecution Service ,22/11/2019,IT services,Apps and Hosting Contract,CGI IT UK Ltd,GB014027985,"30,000.44",Y
Crown Prosecution Service ,22/11/2019,Recoverable VAT control,Balance Sheet,CGI IT UK Ltd,GB014028328,"25,089.52",Y
Crown Prosecution Service ,22/11/2019,Intangibles asset purchase clearing CMS,DTS ICT Capital Expenditure,CGI IT UK Ltd,GB014028328,"125,447.60",
Crown Prosecution Service ,22/11/2019,Recoverable VAT control,Balance Sheet,CGI IT UK Ltd,GB014028374,"82,346.97",Y
Crown Prosecution Service ,22/11/2019,Intangibles asset purchase clearing CMS,DTS ICT Capital Expenditure,CGI IT UK Ltd,GB014028374,"411,734.84",
Crown Prosecution Service ,22/11/2019,Salary sacrifice suspense,Balance Sheet,Edenred,INV21010736,"61,533.01",
Crown Prosecution Service ,22/11/2019,Other Staff Costs,Finance Operations,Edenred,INV21010736,"1,792.00",
Crown Prosecution Service ,22/11/2019,Crown Court Very High Cost Cases Full Scheme,Pre Enforcement Team,Citadel Chambers,TH/676299/AMAZON 16,"36,507.00",Y
Crown Prosecution Service ,25/11/2019,Crown Court Graduated Fee Scheme,Yorkshire and Humberside CC Legal,Kings Bench Walk Leeds,114651-DBQC-TRIAL,"38,804.90",Y
Crown Prosecution Service ,25/11/2019,Crown Court Graduated Fee Scheme,SFD London,2 Dr Johnson's Buildings,157066drb,"48,209.58",Y
Crown Prosecution Service ,25/11/2019,Crown Court Graduated Fee Scheme,SFD London,2 Dr Johnson's Buildings,157066spm,"35,273.73",Y
Crown Prosecution Service ,25/11/2019,Advice/PreSending Very High Cost Cases  Full Scheme,SFD London,2 Bedford Row Chambers,AST187498,"25,439.70",Y
Crown Prosecution Service ,26/11/2019,Crown Court Graduated Fee Scheme,Mersey Cheshire Complex Casework Unit,Harrington Street Chambers,1061082/NLR,"29,237.63",Y
Crown Prosecution Service ,26/11/2019,Crown Court Graduated Fee Scheme,Thames and Chiltern Complex Casework Unit,23 Essex Street Chambers,173095-JAP-1,"76,429.12",Y
Crown Prosecution Service ,26/11/2019,IT services,ERP Project: Programme,Accenture (UK) Ltd London,3003448692,"38,400.00",Y
Crown Prosecution Service ,26/11/2019,Landlord service charge,Estate and FM: Programme,Cushman & Wakefield Debenham Tie Lung Ltd London,CPS490,"86,141.92",
Crown Prosecution Service ,26/11/2019,Landlord service charge,Estate and FM: Programme,Cushman & Wakefield Debenham Tie Lung Ltd London,CPS490,"22,700.42",Y
Crown Prosecution Service ,26/11/2019,National non domestic rates,Estate and FM: Programme,Cushman & Wakefield Debenham Tie Lung Ltd London,CPS490,"2,202.00",
Crown Prosecution Service ,26/11/2019,Operating lease rentals Property,Estate and FM: Administration,Cushman & Wakefield Debenham Tie Lung Ltd London,CPS490,"120,882.68",
Crown Prosecution Service ,26/11/2019,National non domestic rates,Estate and FM: Programme,Cushman & Wakefield Debenham Tie Lung Ltd London,CPS490,"6,136.00",
Crown Prosecution Service ,26/11/2019,National non domestic rates,Estate and FM: Programme,Cushman & Wakefield Debenham Tie Lung Ltd London,CPS490,"8,064.00",
Crown Prosecution Service ,26/11/2019,National non domestic rates,Estate and FM: Programme,Cushman & Wakefield Debenham Tie Lung Ltd London,CPS490,"25,056.00",
Crown Prosecution Service ,26/11/2019,National non domestic rates,Estate and FM: Programme,Cushman & Wakefield Debenham Tie Lung Ltd London,CPS490,195.00,
Crown Prosecution Service ,26/11/2019,National non domestic rates,Estate and FM: Programme,Cushman & Wakefield Debenham Tie Lung Ltd London,CPS490,"4,989.00",
Crown Prosecution Service ,26/11/2019,National non domestic rates,Estate and FM: Programme,Cushman & Wakefield Debenham Tie Lung Ltd London,CPS490,"2,247.00",
Crown Prosecution Service ,26/11/2019,National non domestic rates,Estate and FM: Administration,Cushman & Wakefield Debenham Tie Lung Ltd London,CPS490,"28,095.63",
Crown Prosecution Service ,26/11/2019,National non domestic rates,Estate and FM: Programme,Cushman & Wakefield Debenham Tie Lung Ltd London,CPS490,"2,331.00",
Crown Prosecution Service ,26/11/2019,National non domestic rates,Estate and FM: Administration,Cushman & Wakefield Debenham Tie Lung Ltd London,CPS490,491.00,
Crown Prosecution Service ,26/11/2019,Operating lease rentals Property,Estate and FM: Programme,Cushman & Wakefield Debenham Tie Lung Ltd London,CPS490,"120,882.68",
Crown Prosecution Service ,26/11/2019,Landlord service charge,Estate and FM: Administration,Cushman & Wakefield Debenham Tie Lung Ltd London,CPS490,"86,141.86",
Crown Prosecution Service ,26/11/2019,National non domestic rates,Estate and FM: Programme,Cushman & Wakefield Debenham Tie Lung Ltd London,CPS490,"5,731.00",
Crown Prosecution Service ,26/11/2019,National non domestic rates,Estate and FM: Programme,Cushman & Wakefield Debenham Tie Lung Ltd London,CPS490,"1,743.00",
Crown Prosecution Service ,26/11/2019,National non domestic rates,Estate and FM: Programme,Cushman & Wakefield Debenham Tie Lung Ltd London,CPS490,"1,033.00",
Crown Prosecution Service ,26/11/2019,National non domestic rates,Estate and FM: Programme,Cushman & Wakefield Debenham Tie Lung Ltd London,CPS490,"13,775.00",
Crown Prosecution Service ,26/11/2019,National non domestic rates,Estate and FM: Administration,Cushman & Wakefield Debenham Tie Lung Ltd London,CPS490,"1,739.00",
Crown Prosecution Service ,26/11/2019,National non domestic rates,Estate and FM: Programme,Cushman & Wakefield Debenham Tie Lung Ltd London,CPS490,"25,602.10",
Crown Prosecution Service ,26/11/2019,National non domestic rates,Estate and FM: Programme,Cushman & Wakefield Debenham Tie Lung Ltd London,CPS490,"8,358.00",
Crown Prosecution Service ,26/11/2019,National non domestic rates,Estate and FM: Programme,Cushman & Wakefield Debenham Tie Lung Ltd London,CPS490,"5,580.00",
Crown Prosecution Service ,26/11/2019,National non domestic rates,Estate and FM: Administration,Cushman & Wakefield Debenham Tie Lung Ltd London,CPS490,"6,450.00",
Crown Prosecution Service ,26/11/2019,National non domestic rates,Estate and FM: Programme,Cushman & Wakefield Debenham Tie Lung Ltd London,CPS490,"11,841.00",
Crown Prosecution Service ,26/11/2019,National non domestic rates,Estate and FM: Programme,Cushman & Wakefield Debenham Tie Lung Ltd London,CPS490,"28,095.63",
Crown Prosecution Service ,26/11/2019,National non domestic rates,Estate and FM: Programme,Cushman & Wakefield Debenham Tie Lung Ltd London,CPS490,"23,514.00",
Crown Prosecution Service ,26/11/2019,National non domestic rates,Estate and FM: Programme,Cushman & Wakefield Debenham Tie Lung Ltd London,CPS490,"6,336.00",
Crown Prosecution Service ,26/11/2019,National non domestic rates,Estate and FM: Programme,Cushman & Wakefield Debenham Tie Lung Ltd London,CPS490,"5,073.00",
Crown Prosecution Service ,26/11/2019,National non domestic rates,Estate and FM: Programme,Cushman & Wakefield Debenham Tie Lung Ltd London,CPS490,"2,117.00",
Crown Prosecution Service ,26/11/2019,National non domestic rates,Estate and FM: Programme,Cushman & Wakefield Debenham Tie Lung Ltd London,CPS490,"13,858.00",
Crown Prosecution Service ,26/11/2019,National non domestic rates,Estate and FM: Programme,Cushman & Wakefield Debenham Tie Lung Ltd London,CPS490,"5,712.00",
Crown Prosecution Service ,26/11/2019,National non domestic rates,Estate and FM: Programme,Cushman & Wakefield Debenham Tie Lung Ltd London,CPS490,"21,511.00",
Crown Prosecution Service ,26/11/2019,IT services,Service Desk Contract,CGI IT UK Ltd,GB014028197,"106,653.43",Y
Crown Prosecution Service ,26/11/2019,Recoverable VAT control,Balance Sheet,CGI IT UK Ltd,GB014028373,"76,206.82",Y
Crown Prosecution Service ,26/11/2019,IT Professional Services Design & Development Hardware & Software: Non Capital Purchases,Apps and Hosting Contract,CGI IT UK Ltd,GB014028373,"381,034.12",
Crown Prosecution Service ,26/11/2019,Crown Court Graduated Fee Scheme,Thames Chiltern Crown Court Unit,2 Harcourt Buildings,PCA103754,"76,357.15",Y
Crown Prosecution Service ,27/11/2019,Crown Court Very High Cost Cases Full Scheme,Thames and Chiltern Complex Casework Unit,6 Pump Court The Chambers of Mr Stephen Hockman,152885/OS2,"77,488.80",Y
Crown Prosecution Service ,27/11/2019,Crown Court Graduated Fee Scheme,London South Complex Casework Unit,5 King's Bench Walk,166639  AFJ1,"29,238.31",Y
Crown Prosecution Service ,27/11/2019,Crown Court Graduated Fee Scheme,South West Crown Court: North,Guildhall Chambers Bristol,180711 DS,"26,504.76",Y
Crown Prosecution Service ,27/11/2019,Miscellaneous receipts suspense,Balance Sheet,Home Office,589306328,"47,890.71",
Crown Prosecution Service ,27/11/2019,Postage ,Mersey Cheshire Area Business Centre,DX Network Services Ltd,82489004,"4,453.12",
Crown Prosecution Service ,27/11/2019,Postage ,South East Area Business Centre,DX Network Services Ltd,82489004,"21,939.98",
Crown Prosecution Service ,27/11/2019,Postage ,London South Crown Court Unit,DX Network Services Ltd,82489004,"29,199.41",
Crown Prosecution Service ,27/11/2019,Postage ,South West Area Business Centre,DX Network Services Ltd,82489004,"10,781.41",
Crown Prosecution Service ,27/11/2019,Postage ,London North Crown Court Unit,DX Network Services Ltd,82489004,"29,262.42",
Crown Prosecution Service ,27/11/2019,Recoverable VAT control,Balance Sheet,DX Network Services Ltd,82489004,"4,154.02",Y
Crown Prosecution Service ,27/11/2019,Postage ,Thames and Chiltern Area Business Centre,DX Network Services Ltd,82489004,"8,537.75",
Crown Prosecution Service ,27/11/2019,Postage ,Estate and FM: Programme,DX Network Services Ltd,82489004,"1,106.50",
Crown Prosecution Service ,27/11/2019,Postage ,Resourcing,DX Network Services Ltd,82489004,63.00,
Crown Prosecution Service ,27/11/2019,Postage ,Wessex Area Business Centre,DX Network Services Ltd,82489004,"12,942.96",
Crown Prosecution Service ,27/11/2019,Postage ,Yorkshire and Humberside Mags Court Legal,DX Network Services Ltd,82489004,"10,479.78",
Crown Prosecution Service ,27/11/2019,Postage ,SFD North,DX Network Services Ltd,82489004,"1,294.52",
Crown Prosecution Service ,27/11/2019,Postage ,Organised Crime North,DX Network Services Ltd,82489004,145.33,
Crown Prosecution Service ,27/11/2019,Postage ,Cymru Wales South East Magistrates Court,DX Network Services Ltd,82489004,"9,098.71",
Crown Prosecution Service ,27/11/2019,Postage ,SFD Midlands and Wales,DX Network Services Ltd,82489004,"2,286.65",
Crown Prosecution Service ,27/11/2019,Postage ,Estate and FM: Administration,DX Network Services Ltd,82489004,"3,011.68",
Crown Prosecution Service ,27/11/2019,Postage ,Finance Operations,DX Network Services Ltd,82489004,"2,918.69",
Crown Prosecution Service ,27/11/2019,Postage ,North East Area Business Centre,DX Network Services Ltd,82489004,"9,205.06",
Crown Prosecution Service ,27/11/2019,Postage ,East of England Area Business Centre,DX Network Services Ltd,82489004,"8,376.55",
Crown Prosecution Service ,27/11/2019,Postage ,Organised Crime Birmingham,DX Network Services Ltd,82489004,666.20,
Crown Prosecution Service ,27/11/2019,Postage ,North West Magistrates Court Hub,DX Network Services Ltd,82489004,"20,770.09",
Crown Prosecution Service ,27/11/2019,Postage ,East Midlands Area Business Centre,DX Network Services Ltd,82489004,"17,596.93",
Crown Prosecution Service ,27/11/2019,Postage ,West Midlands Area Business Centre,DX Network Services Ltd,82489004,"14,201.76",
Crown Prosecution Service ,27/11/2019,UK National rail travel,HR Business Management,Clarity Travel Management,CPSHQ0190,174.90,
Crown Prosecution Service ,27/11/2019,UK National rail travel,Resourcing,Clarity Travel Management,CPSHQ0190,"4,383.80",
Crown Prosecution Service ,27/11/2019,UK National rail travel,Service Transition,Clarity Travel Management,CPSHQ0190,155.00,
Crown Prosecution Service ,27/11/2019,UK National rail travel,HR Strategy and Inclusion,Clarity Travel Management,CPSHQ0190,"1,235.70",
Crown Prosecution Service ,27/11/2019,UK National rail travel,DTS Directorate,Clarity Travel Management,CPSHQ0190,762.00,
Crown Prosecution Service ,27/11/2019,UK National rail travel,Operations: Business Support,Clarity Travel Management,CPSHQ0190,"1,594.65",
Crown Prosecution Service ,27/11/2019,UK National rail travel,Solutions Development,Clarity Travel Management,CPSHQ0190,216.00,
Crown Prosecution Service ,27/11/2019,UK Hotels,Service Integration and Operations,Clarity Travel Management,CPSHQ0190,285.24,Y
Crown Prosecution Service ,27/11/2019,UK Hotels,IT Stewardship,Clarity Travel Management,CPSHQ0190,601.60,Y
Crown Prosecution Service ,27/11/2019,UK Hotels,Legal Trainee Salaries,Clarity Travel Management,CPSHQ0190,102.00,Y
Crown Prosecution Service ,27/11/2019,UK Hotels,Resourcing,Clarity Travel Management,CPSHQ0190,"2,563.50",Y
Crown Prosecution Service ,27/11/2019,UK Hotels,HR Business Management,Clarity Travel Management,CPSHQ0190,391.30,Y
Crown Prosecution Service ,27/11/2019,UK Hotels,Strategic Advisor Team,Clarity Travel Management,CPSHQ0190,70.00,Y
Crown Prosecution Service ,27/11/2019,UK Hotels,Operations: Delivery,Clarity Travel Management,CPSHQ0190,"4,099.30",Y
Crown Prosecution Service ,27/11/2019,UK Hotels,HR Strategy and Inclusion,Clarity Travel Management,CPSHQ0190,167.00,Y
Crown Prosecution Service ,27/11/2019,UK Hotels,Learning and Development General,Clarity Travel Management,CPSHQ0190,772.50,Y
Crown Prosecution Service ,27/11/2019,UK Hotels,HR Business Management,Clarity Travel Management,CPSHQ0190,325.00,Y
Crown Prosecution Service ,27/11/2019,UK Hotels,ERP Project: Admin,Clarity Travel Management,CPSHQ0190,590.67,Y
Crown Prosecution Service ,27/11/2019,UK Hotels,Disability Staff Network,Clarity Travel Management,CPSHQ0190,191.00,Y
Crown Prosecution Service ,27/11/2019,UK Hotels,DTUS,Clarity Travel Management,CPSHQ0190,50.12,Y
Crown Prosecution Service ,27/11/2019,UK Hotels,Analysis and Delivery,Clarity Travel Management,CPSHQ0190,709.14,Y
Crown Prosecution Service ,27/11/2019,UK Hotels,Press Office,Clarity Travel Management,CPSHQ0190,261.00,Y
Crown Prosecution Service ,27/11/2019,UK Hotels,Operations: Digital,Clarity Travel Management,CPSHQ0190,"1,073.50",Y
Crown Prosecution Service ,27/11/2019,UK Hotels,Data Protection Compliance Unit,Clarity Travel Management,CPSHQ0190,118.00,Y
Crown Prosecution Service ,27/11/2019,UK Hotels,Operations: Business Support,Clarity Travel Management,CPSHQ0190,551.20,Y
Crown Prosecution Service ,27/11/2019,UK Hotels,Corporate HR,Clarity Travel Management,CPSHQ0190,85.00,Y
Crown Prosecution Service ,27/11/2019,UK National rail travel,Corporate HR,Clarity Travel Management,CPSHQ0190,"1,225.25",
Crown Prosecution Service ,27/11/2019,UK National rail travel,HR Business Management,Clarity Travel Management,CPSHQ0190,541.20,
Crown Prosecution Service ,27/11/2019,UK National rail travel,DTUS,Clarity Travel Management,CPSHQ0190,294.80,
Crown Prosecution Service ,27/11/2019,UK National rail travel,Strategic Advisor Team,Clarity Travel Management,CPSHQ0190,27.60,
Crown Prosecution Service ,27/11/2019,UK National rail travel,ERP Project: Admin,Clarity Travel Management,CPSHQ0190,68.50,
Crown Prosecution Service ,27/11/2019,UK National rail travel,Operations: Digital,Clarity Travel Management,CPSHQ0190,"1,183.20",
Crown Prosecution Service ,27/11/2019,UK National rail travel,HR Operations,Clarity Travel Management,CPSHQ0190,471.70,
Crown Prosecution Service ,27/11/2019,UK National rail travel,Leadership and Management Development,Clarity Travel Management,CPSHQ0190,141.80,
Crown Prosecution Service ,27/11/2019,UK National rail travel,Learning and Development General,Clarity Travel Management,CPSHQ0190,"2,680.15",
Crown Prosecution Service ,27/11/2019,UK National rail travel,Information Management Unit,Clarity Travel Management,CPSHQ0190,569.70,
Crown Prosecution Service ,27/11/2019,UK National rail travel,Operational HR Costs,Clarity Travel Management,CPSHQ0190,625.30,
Crown Prosecution Service ,27/11/2019,UK National rail travel,Director of Finance,Clarity Travel Management,CPSHQ0190,315.20,
Crown Prosecution Service ,27/11/2019,UK National rail travel,Departmental Security Unit: Admin,Clarity Travel Management,CPSHQ0190,469.10,
Crown Prosecution Service ,27/11/2019,UK National rail travel,Strategic Financial Planning,Clarity Travel Management,CPSHQ0190,197.20,
Crown Prosecution Service ,27/11/2019,UK National rail travel,Service Integration and Operations,Clarity Travel Management,CPSHQ0190,271.60,
Crown Prosecution Service ,27/11/2019,UK National rail travel,Estates and Commercial,Clarity Travel Management,CPSHQ0190,"1,472.50",
Crown Prosecution Service ,27/11/2019,UK Air travel,Operations: Business Support,Clarity Travel Management,CPSHQ0190,62.37,
Crown Prosecution Service ,27/11/2019,UK National rail travel,IT Stewardship,Clarity Travel Management,CPSHQ0190,807.15,
Crown Prosecution Service ,27/11/2019,UK National rail travel,Press Office,Clarity Travel Management,CPSHQ0190,327.50,
Crown Prosecution Service ,27/11/2019,UK National rail travel,Financial Accounting and Risk,Clarity Travel Management,CPSHQ0190,91.70,
Crown Prosecution Service ,27/11/2019,UK National rail travel,Permanent Transfer Costs,Clarity Travel Management,CPSHQ0190,905.70,
Crown Prosecution Service ,27/11/2019,UK National rail travel,Operations: Delivery,Clarity Travel Management,CPSHQ0190,"9,120.30",
Crown Prosecution Service ,27/11/2019,UK National rail travel,Analysis and Delivery,Clarity Travel Management,CPSHQ0190,"1,241.85",
Crown Prosecution Service ,28/11/2019,Crown Court Graduated Fee Scheme,Mersey Cheshire Crown Court Unit,Harrington Street Chambers,1104061/RP1,"29,368.82",Y
Crown Prosecution Service ,28/11/2019,IT services,Apps and Hosting Contract,CGI IT UK Ltd,GB014028195,"35,142.14",Y
Crown Prosecution Service ,28/11/2019,Data Communications,Video Conferencing Services,Vodafone Ltd formerly Cable and Wireless Milton Keynes,UK10/112019/2639,"31,081.33",Y
Crown Prosecution Service ,29/11/2019,Data Communications,PSN Services Contract,CenturyLink,86295142/980874,"61,006.42",Y
